bitfinex/quotes_SOLUSD_20240930
["timestamp","ask_amount","ask_price","bid_price","bid_amount"]
[1727655882583,6.2944,158.87,158.83,6.2959]
[1727655882765,6.294,158.88,158.83,6.2959]
[1727655883298,6.294,158.88,158.84,1.25893556]
[1727655884460,6.294,158.88,158.83,6.2959]
[1727655885973,0.62549,158.91,158.81,31.4544]
[1727655885974,6.2947,158.87,158.82,6.2964]
[1727655886285,0.62549,158.91,158.82,6.2963]
[1727655886286,6.2948,158.86,158.82,6.2963]
[1727655886582,6.2952,158.85,158.83,1.25903041]
[1727655886769,20.0,158.88,158.81,31.4544]
[1727655886974,0.5,158.87,158.81,31.4544]
[1727655887174,6.2955,158.85,158.81,31.4544]
[1727655887481,6.7955,158.85,158.81,31.4544]
[1727655887708,20.12549,158.88,158.81,15.7127]
[1727655887709,24.276884,158.87,158.81,15.7127]
[1727655887997,6.2959,158.84,158.81,15.7127]
[1727655888809,0.5,158.87,158.81,15.7127]
[1727655888975,6.2956,158.84,158.81,15.7127]
[1727655891435,6.2963,158.83,158.79,6.4297]
[1727655892398,6.2956,158.84,158.79,12.7272]
[1727655892607,6.296,158.83,158.79,12.7272]
[1727655893789,6.2957,158.84,158.8,1.25929069]
[1727655894010,6.2952,158.85,158.8,7.55649069]
[1727655894304,6.2952,158.85,158.8,6.2972]
[1727655894607,6.2956,158.84,158.8,6.2972]
[1727655895593,6.2956,158.84,158.79,12.7272]
[1727655896704,6.2956,158.84,158.79,6.2975]
[1727655897387,0.5,158.83,158.78,15.7448]
[1727655897687,6.2972,158.81,158.76,6.2987]
[1727655897883,0.5,158.83,158.76,6.2987]
[1727655897884,0.5,158.8,158.76,6.2987]
[1727655898113,6.2972,158.8,158.75,28.5289]
[1727655898887,6.2968,158.81,158.76,6.2985]
[1727655899089,6.2968,158.81,158.76,7.55807348]
[1727655899287,0.12549,158.84,158.77,6.298]
[1727655899288,6.2964,158.82,158.77,6.298]
[1727655899511,6.2964,158.82,158.78,1.25939569]
[1727655900086,20.0,158.86,158.79,6.2975]
[1727655900401,20.12549,158.87,158.8,1.25928805]
[1727655900622,6.296,158.84,158.79,7.55680011]
[1727655900789,6.296,158.83,158.79,7.55680011]
[1727655900985,6.2965,158.82,158.77,15.7454]
[1727655901190,6.2965,158.82,158.77,22.0437]
[1727655901412,6.7968,158.81,158.77,15.7454]
[1727655901595,6.2968,158.81,158.77,15.7454]
[1727655904919,26.2957,158.84,158.79,6.2975]
[1727655905115,26.2957,158.84,158.8,1.25931573]
[1727655905418,26.2957,158.84,158.79,7.55681588]
[1727655906193,0.5,158.83,158.77,15.7454]
[1727655906615,6.2969,158.81,158.77,15.7454]
[1727655906815,6.2969,158.81,158.77,22.0437]
[1727655907416,20.0,158.83,158.79,6.2976]
[1727655907719,6.2961,158.83,158.78,6.2979]
[1727655907924,20.5,158.84,158.77,15.7454]
[1727655908113,6.2965,158.82,158.77,22.0437]
[1727655909598,6.7969,158.81,158.77,15.7454]
[1727655909816,6.2975,158.8,158.75,12.7812]
[1727655910536,6.2975,158.8,158.75,6.4821]
[1727655910728,6.2965,158.82,158.77,6.2983]
[1727655910903,6.2945,158.87,158.82,6.2964]
[1727655911108,15.7319,158.92,158.83,6.2959]
[1727655911109,6.294,158.89,158.83,6.2959]
[1727655911317,6.294,158.89,158.81,15.7418]
[1727655911318,6.294,158.89,158.84,7.5545912]
[1727655911830,6.2927,158.92,158.86,6.2946]
[1727655911997,6.292,158.93,158.88,6.294]
[1727655912401,31.4419,159.03,158.92,6.2924]
[1727655912402,16.5623,159.02,158.92,6.2924]
[1727655912706,6.2905,158.97,158.93,1.25831472]
[1727655913214,6.2905,158.97,158.92,6.2924]
[1727655913944,0.5,158.96,158.9,22.0073]
[1727655914095,24.527864,159.0,158.9,6.2751]
[1727655914298,24.527864,159.0,158.88,6.294]
[1727655914299,6.2919,158.94,158.88,6.294]
[1727655914699,0.5,158.93,158.87,16.3805]
[1727655914918,6.2924,158.93,158.87,22.6748]
[1727655915120,6.7925,158.92,158.87,16.3805]
[1727655915307,0.5,158.91,158.87,16.3805]
[1727655915510,6.2921,158.93,158.87,23.93348256]
[1727655915905,0.5,158.92,158.87,16.3805]
[1727655916220,6.2925,158.92,158.87,16.3805]
[1727655917627,0.5,158.91,158.86,6.6009]
[1727655917818,6.2933,158.9,158.84,6.2956]
[1727655918006,6.2941,158.88,158.83,21.8319]
[1727655918947,24.276884,158.91,158.83,15.536]
[1727655919132,6.2944,158.88,158.83,15.536]
[1727655919633,24.276884,158.91,158.82,22.3929]
[1727655919634,0.5,158.87,158.82,22.3929]
[1727655919928,6.2939,158.89,158.83,7.55499002]
[1727655920102,26.2932,158.9,158.84,6.2955]
[1727655920302,6.2929,158.91,158.86,6.2948]
[1727655920510,6.2929,158.91,158.85,22.033]
[1727655920815,6.2933,158.9,158.85,22.033]
[1727655922324,6.294,158.88,158.83,6.2956]
[1727655922625,0.5,158.87,158.82,6.6527]
[1727655922808,6.2948,158.86,158.82,6.6527]
[1727655923340,0.5,158.85,158.79,15.6556]
[1727655923616,44.027864,158.9,158.79,15.6556]
[1727655923819,20.0,158.86,158.8,15.7427]
[1727655924022,44.027864,158.9,158.83,6.2959]
[1727655924023,20.0,158.88,158.83,6.2959]
[1727655924226,20.0,158.88,158.84,1.25896117]
[1727655924404,26.2942,158.88,158.84,1.25896117]
[1727655924719,26.2942,158.88,158.83,6.2959]
[1727655924919,6.2944,158.87,158.82,6.2964]
[1727655925927,20.0,158.89,158.8,15.7427]
[1727655926226,6.2952,158.85,158.8,22.0398]
[1727655927001,6.7957,158.84,158.8,15.7427]
[1727655927331,20.12549,158.87,158.8,15.7427]
[1727655927624,30.072084,158.86,158.8,22.0399]
[1727655928209,6.7955,158.85,158.8,22.0399]
[1727655929512,6.2956,158.84,158.8,15.7427]
[1727655929716,0.5,158.85,158.79,15.6556]
[1727655929930,24.027864,158.84,158.77,6.2981]
[1727655930219,24.027864,158.84,158.76,15.7465]
[1727655930220,6.2972,158.8,158.76,15.7465]
[1727655930428,0.5,158.79,158.75,15.6539]
[1727655930733,6.7976,158.79,158.75,15.6539]
[1727655930939,6.2976,158.79,158.75,15.6539]
[1727655931232,6.7976,158.79,158.75,15.6539]
[1727655931411,0.5,158.79,158.73,15.7497]
[1727655931610,6.298,158.78,158.73,23.30949677]
[1727655932419,6.2984,158.77,158.73,15.7497]
[1727655932822,6.7988,158.76,158.71,22.4542]
[1727655933033,0.5,158.75,158.71,22.4542]
[1727655933510,20.5,158.75,158.7,22.2251]
[1727655933714,0.5,158.74,158.7,22.2251]
[1727655933944,29.942984,158.8,158.7,28.526]
[1727655934126,20.0,158.77,158.71,1.26000347]
[1727655934338,6.2988,158.76,158.7,28.5259]
[1727655934522,6.7992,158.75,158.7,28.5259]
[1727655935337,0.5,158.75,158.68,16.3302]
[1727655935513,0.5,158.75,158.68,22.6321]
[1727655935514,6.3,158.73,158.68,22.6321]
[1727655936135,0.5,158.72,158.68,16.3302]
[1727655936338,6.3008,158.71,158.66,28.6621]
[1727655936563,0.5,158.7,158.65,0.810177]
[1727655936721,6.3027,158.66,158.65,0.810177]
[1727655937438,6.3024,158.67,158.65,0.810177]
[1727655937817,0.5,158.66,158.65,0.810177]
[1727655938740,6.8027,158.66,158.65,0.810177]
[1727655938934,0.5,158.66,158.65,0.810177]
[1727655939131,6.3024,158.67,158.65,0.810177]
[1727655940639,0.5,158.66,158.65,0.810177]
[1727655940826,6.3024,158.67,158.65,0.810177]
[1727655942418,0.5,158.66,158.65,0.810177]
[1727655942814,6.3024,158.67,158.65,0.810177]
[1727655943224,20.0,158.67,158.65,0.810177]
[1727655943420,0.5,158.66,158.65,0.810177]
[1727655943753,26.3024,158.67,158.65,0.810177]
[1727655944113,23.776884,158.67,158.65,0.810177]
[1727655944421,30.079284,158.67,158.65,0.810177]
[1727655944810,0.5,158.66,158.65,0.810177]
[1727655945014,30.079284,158.67,158.65,0.810177]
[1727655945242,20.0,158.67,158.65,0.810177]
[1727655945851,6.3043,158.63,158.56,6.3066]
[1727655946143,6.3047,158.61,158.54,12.4551]
[1727655946345,6.8052,158.6,158.55,6.307]
[1727655946643,0.12549,158.58,158.54,6.148]
[1727655946945,6.3059,158.59,158.54,6.3075]
[1727655947120,6.8061,158.58,158.53,15.7689]
[1727655947317,24.027864,158.57,158.5,6.3087]
[1727655947515,0.12549,158.55,158.5,6.3087]
[1727655947719,6.43269,158.55,158.5,6.3087]
[1727655948147,0.5,158.54,158.49,16.583577]
[1727655948318,6.43269,158.55,158.49,22.892777]
[1727655948816,6.43269,158.55,158.5,6.3091]
[1727655949238,20.0,158.58,158.52,6.3082]
[1727655949430,20.0,158.59,158.52,6.3082]
[1727655949832,0.12549,158.58,158.52,6.3082]
[1727655950148,20.0,158.57,158.52,6.3082]
[1727655951530,0.12549,158.58,158.53,7.56924281]
[1727655951730,43.902374,158.59,158.54,6.3075]
[1727655952342,6.6239,158.64,158.53,1.26144281]
[1727655952525,6.6239,158.64,158.55,6.3071]
[1727655952927,0.5,158.63,158.52,15.7707]
[1727655953236,6.6239,158.64,158.55,6.3071]
[1727655953541,6.3047,158.61,158.55,6.3071]
[1727655953747,20.12549,158.6,158.55,6.3071]
[1727655954539,6.6239,158.64,158.55,15.7677]
[1727655954749,0.5,158.63,158.55,15.7677]
[1727655954953,6.3044,158.62,158.56,6.3066]
[1727655955729,0.12549,158.61,158.56,6.3066]
[1727655955932,20.12549,158.61,158.56,6.3066]
[1727655956229,0.5,158.6,158.55,22.0747]
[1727655956437,0.5,158.6,158.53,6.3075]
[1727655956438,0.12549,158.59,158.53,6.3075]
[1727655956735,0.12549,158.59,158.51,15.7709]
[1727655956736,0.5,158.58,158.54,6.3073]
[1727655958639,0.5,158.58,158.5,6.3781]
[1727655958640,26.305,158.61,158.53,15.7689]
[1727655958837,26.305,158.61,158.56,6.3066]
[1727655959043,20.0,158.61,158.56,6.3066]
[1727655959648,20.5,158.61,158.56,6.3066]
[1727655960647,32.003,158.66,158.57,7.56727086]
[1727655960854,44.527864,158.65,158.56,15.7666]
[1727655961032,44.527864,158.65,158.53,22.0773]
[1727655961226,0.12549,158.6,158.53,15.7698]
[1727655961533,0.5,158.6,158.55,6.3071]
[1727655962147,6.8051,158.6,158.55,6.3071]
[1727655962551,6.8051,158.6,158.53,15.7698]
[1727655962853,6.8051,158.6,158.54,6.3075]
[1727655963153,6.3051,158.6,158.54,6.3075]
[1727655963455,20.12549,158.61,158.55,7.56809524]
[1727655963630,6.43019,158.61,158.55,7.56809524]
[1727655963833,0.12549,158.64,158.55,1.26129524]
[1727655964141,6.5104,158.68,158.61,6.3045]
[1727655964327,0.5,158.67,158.6,15.762]
[1727655964531,0.5,158.67,158.55,20.0]
[1727655964532,6.3036,158.64,158.55,20.0]
[1727655964747,6.3036,158.64,158.59,6.3054]
[1727655964748,0.5,158.63,158.59,6.3054]
[1727655965252,6.3036,158.64,158.59,6.3054]
[1727655965453,0.5,158.63,158.59,6.3054]
[1727655965847,6.3043,158.63,158.57,22.0721]
[1727655966339,6.3043,158.63,158.58,1.26102486]
[1727655967031,6.3044,158.62,158.57,22.0721]
[1727655967451,6.8047,158.61,158.51,16.1037]
[1727655967637,0.5,158.6,158.54,15.7687]
[1727655967961,0.5,158.59,158.51,31.8754]
[1727655968161,20.0,158.58,158.53,6.3075]
[1727655968342,0.5,158.57,158.53,6.3075]
[1727655969244,6.306,158.58,158.53,6.3075]
[1727655969641,0.5,158.57,158.53,6.3075]
[1727655970450,6.306,158.58,158.53,6.3075]
[1727655971660,0.5,158.6,158.51,31.8754]
[1727655971661,20.5,158.6,158.51,16.1037]
[1727655971867,6.3049,158.61,158.56,6.3066]
[1727655972359,16.1552,158.63,158.57,7.56735765]
[1727655972360,6.3044,158.62,158.57,7.56735765]
[1727655972539,20.0,158.61,158.57,7.56735765]
[1727655972743,6.3044,158.62,158.57,7.56735765]
[1727655972952,6.3044,158.62,158.58,1.26104032]
[1727655973460,6.3044,158.62,158.57,6.3062]
[1727655973860,16.3786,158.67,158.58,17.02503057]
[1727655974042,6.3028,158.66,158.61,6.3047]
[1727655974347,6.8032,158.65,158.6,6.3051]
[1727655975246,6.3032,158.65,158.6,6.3051]
[1727655975659,0.5,158.66,158.58,15.764]
[1727655975856,6.5327,158.69,158.61,15.7615]
[1727655975857,6.3019,158.68,158.61,15.7615]
[1727655976172,6.3021,158.68,158.63,6.3039]
[1727655976663,0.5,158.67,158.62,6.3043]
[1727655977644,6.3021,158.68,158.63,1.26060068]
[1727655977864,20.0,158.68,158.63,1.26060068]
[1727655978041,0.5,158.69,158.61,15.7615]
[1727655978244,6.3019,158.68,158.63,6.3039]
[1727655980074,6.3028,158.66,158.61,22.0662]
[1727655980242,6.8031,158.65,158.61,15.7615]
[1727655980443,6.3031,158.65,158.61,15.7615]
[1727655981179,6.3028,158.66,158.61,22.0662]
[1727655983847,6.8031,158.65,158.61,15.7615]
[1727655984067,6.3031,158.65,158.61,15.7615]
[1727655984285,6.3036,158.64,158.59,15.5804]
[1727655984453,6.8039,158.63,158.58,22.0707]
[1727655984653,6.3039,158.63,158.58,22.0707]
[1727655984973,6.8044,158.62,158.58,15.7648]
[1727655985179,6.3051,158.6,158.55,37.9204]
[1727655985408,6.79109,158.66,158.57,6.3063]
[1727655985409,0.5,158.65,158.57,6.3063]
[1727655985676,43.902374,158.65,158.55,31.6136]
[1727655985880,6.3055,158.59,158.55,37.9207]
[1727655986075,6.3055,158.59,158.55,31.6136]
[1727655986957,16.32129,158.64,158.52,15.7706]
[1727655987154,16.32129,158.64,158.53,1.26129244]
[1727655987155,44.027864,158.62,158.53,1.26129244]
[1727655987476,43.902374,158.62,158.54,15.768]
[1727655987774,6.3047,158.61,158.56,6.3067]
[1727655987974,6.3047,158.61,158.57,1.26111895]
[1727655988276,6.3044,158.62,158.57,6.3063]
[1727655989165,0.5,158.63,158.56,15.766]
[1727655989474,6.3048,158.61,158.56,22.0725]
[1727655990278,6.3055,158.59,158.54,6.3075]
[1727655992176,30.207174,158.61,158.56,6.3066]
[1727655992368,6.3048,158.61,158.57,7.5674717]
[1727655992756,20.0,158.62,158.58,6.3056]
[1727655992957,6.3043,158.63,158.58,6.3056]
[1727655993382,6.3043,158.62,158.57,17.0262717]
[1727655993677,6.3043,158.62,158.57,15.7651]
[1727655993865,6.3043,158.62,158.57,22.0713]
[1727655994269,6.3043,158.62,158.58,1.26099733]
[1727655994669,6.3043,158.62,158.57,22.0713]
[1727655996466,0.5,158.61,158.57,15.7651]
[1727655996771,20.0,158.65,158.55,6.3071]
[1727655996772,6.3051,158.6,158.55,6.3071]
[1727655996956,6.8056,158.59,158.54,15.7685]
[1727655997165,6.3064,158.57,158.52,6.3083]
[1727655998083,23.902374,158.62,158.51,32.1868]
[1727655998084,6.3071,158.55,158.51,32.1868]
[1727655998399,0.5,158.56,158.51,38.4954]
[1727655998400,6.3068,158.56,158.51,38.4954]
[1727655999377,6.3076,158.54,158.49,7.119277]
[1727655999564,20.5,158.55,158.5,6.309]
[1727655999882,20.0,158.54,158.5,6.309]
[1727656000986,6.8079,158.53,158.49,0.810177]
[1727656002088,0.5,158.52,158.49,0.810177]
[1727656002667,6.8084,158.52,158.49,0.810177]
[1727656002870,6.3084,158.52,158.49,0.810177]
[1727656003077,0.25098,158.56,158.49,0.810177]
[1727656003280,6.3088,158.51,158.49,0.810177]
[1727656003485,0.5,158.5,158.49,0.810177]
[1727656003791,6.3088,158.51,158.49,0.810177]
[1727656004780,6.8091,158.5,158.49,0.810177]
[1727656004989,6.3091,158.5,158.49,0.810177]
[1727656005392,30.211474,158.5,158.49,0.810177]
[1727656006388,50.211474,158.5,158.49,0.810177]
[1727656007389,50.211474,158.5,158.47,0.4284481]
[1727656007390,6.56088,158.48,158.47,0.4284481]
[1727656007571,6.3111,158.45,158.41,15.7817]
[1727656007775,20.12549,158.47,158.41,15.7817]
[1727656007976,20.0,158.47,158.44,6.3115]
[1727656008500,20.0,158.47,158.41,15.7817]
[1727656008501,20.0,158.47,158.43,6.3118]
[1727656008668,20.0,158.47,158.41,15.7817]
[1727656008669,20.5,158.47,158.41,15.7817]
[1727656008877,26.8104,158.47,158.41,22.094]
[1727656009793,24.027864,158.46,158.41,15.7817]
[1727656009981,30.213474,158.46,158.41,15.7817]
[1727656010292,23.902374,158.44,158.39,6.3135]
[1727656010489,0.5,158.43,158.39,6.3135]
[1727656010670,0.12549,158.47,158.37,15.7848]
[1727656010671,23.902374,158.44,158.37,15.7848]
[1727656011000,0.5,158.43,158.37,15.7848]
[1727656011373,0.5,158.43,158.4,6.313]
[1727656012498,20.0,158.45,158.41,6.3127]
[1727656012874,20.0,158.45,158.4,6.3131]
[1727656012875,23.902374,158.44,158.4,6.3131]
[1727656013501,26.3113,158.45,158.4,7.57564191]
[1727656013678,23.776884,158.44,158.4,6.3131]
[1727656013997,0.5,158.43,158.39,22.0963]
[1727656016477,6.3111,158.46,158.4,7.57525601]
[1727656016703,6.3111,158.46,158.4,1.26255601]
[1727656016882,20.0,158.45,158.4,1.26255601]
[1727656017078,26.3112,158.45,158.39,15.7829]
[1727656017396,0.5,158.44,158.39,15.7829]
[1727656017608,30.588384,158.44,158.4,6.313]
[1727656018206,26.3112,158.45,158.4,7.57549354]
[1727656018777,20.0,158.45,158.42,6.3122]
[1727656018979,43.902374,158.46,158.42,6.3122]
[1727656019185,20.0,158.46,158.43,6.3118]
[1727656019394,20.0,158.47,158.43,6.3118]
[1727656019602,20.0,158.47,158.42,22.093]
[1727656019603,20.0,158.46,158.42,22.093]
[1727656020181,20.0,158.47,158.43,6.3118]
[1727656020582,20.0,158.47,158.42,15.7808]
[1727656020583,20.5,158.47,158.42,15.7808]
[1727656021008,0.5,158.47,158.42,15.7808]
[1727656021203,24.402374,158.49,158.42,15.7808]
[1727656021400,0.12549,158.47,158.42,15.7808]
[1727656021705,26.3109,158.46,158.42,15.7808]
[1727656022013,0.5,158.45,158.42,15.7808]
[1727656022195,26.3109,158.46,158.42,15.7808]
[1727656022379,0.5,158.45,158.41,6.3123]
[1727656022579,6.8111,158.45,158.41,6.3123]
[1727656022808,0.5,158.45,158.39,15.7834]
[1727656022994,6.3116,158.44,158.39,15.7834]
[1727656023311,6.3116,158.44,158.37,31.5707]
[1727656023312,6.3124,158.42,158.37,6.314]
[1727656023490,0.5,158.41,158.37,6.314]
[1727656023880,0.5,158.41,158.36,31.9408]
[1727656024099,6.312,158.43,158.38,6.3139]
[1727656024309,0.5,158.42,158.38,6.3139]
[1727656024490,6.8124,158.42,158.37,6.3142]
[1727656024795,6.3131,158.4,158.36,15.7864]
[1727656025200,0.5,158.39,158.35,6.315]
[1727656025382,6.3131,158.4,158.35,6.315]
[1727656025582,0.5,158.39,158.35,6.315]
[1727656025778,6.3139,158.38,158.33,16.599777]
[1727656026006,0.5,158.37,158.33,16.599777]
[1727656026187,20.0,158.38,158.34,6.3154]
[1727656027601,21.65785678,158.44,158.33,16.599777]
[1727656027602,6.3131,158.41,158.36,6.3146]
[1727656027800,20.0,158.4,158.36,6.3146]
[1727656028179,20.5,158.4,158.33,16.599777]
[1727656028377,20.5,158.4,158.35,6.315]
[1727656028378,6.3131,158.4,158.35,6.315]
[1727656028602,20.0,158.39,158.35,6.315]
[1727656028784,20.0,158.39,158.36,1.26290594]
[1727656028986,20.0,158.39,158.36,6.3144]
[1727656029183,20.0,158.4,158.36,6.3144]
[1727656029395,6.3119,158.43,158.38,6.3138]
[1727656029899,15.0572,158.44,158.37,6.3143]
[1727656029900,6.3123,158.42,158.37,6.3143]
[1727656030686,20.5,158.41,158.37,6.3143]
[1727656030887,26.8127,158.41,158.36,6.3146]
[1727656031781,0.5,158.4,158.36,6.3146]
[1727656033199,26.3127,158.41,158.36,6.3146]
[1727656034998,0.5,158.4,158.36,6.3146]
[1727656035789,6.8132,158.4,158.35,22.102]
[1727656036193,6.3132,158.4,158.35,22.102]
[1727656036712,6.3139,158.38,158.33,7.125977]
[1727656036914,0.5,158.37,158.33,7.125977]
[1727656037583,8.11154792,158.38,158.33,2.07326347]
[1727656037993,8.11154792,158.38,158.37,6.3143]
[1727656044201,8.11154792,158.38,158.37,26.3143]
[1727656044403,8.11154792,158.38,158.37,66.02185196]
[1727656044597,8.11154792,158.38,158.37,26.3143]
[1727656045509,8.11154792,158.38,158.37,6.3143]
[1727656046286,8.11154792,158.38,158.36,6.3143]
[1727656046704,8.11154792,158.38,158.37,6.3143]
[1727656047210,8.11154792,158.38,158.36,6.3146]
[1727656047507,8.11154792,158.38,158.34,22.1031]
[1727656047893,8.11154792,158.38,158.34,15.788]
[1727656048288,0.5,158.37,158.33,0.810177]
[1727656048702,0.5,158.37,158.33,7.125877]
[1727656049287,0.5,158.37,158.26,15.796]
[1727656049496,15.6672,158.33,158.26,15.796]
[1727656049704,0.5,158.32,158.26,15.796]
[1727656050125,15.6672,158.33,158.26,15.796]
[1727656050291,6.8166,158.32,158.26,15.796]
[1727656050608,6.5291,158.35,158.27,27.58157943]
[1727656050817,6.5291,158.35,158.27,21.26347943]
[1727656050990,15.5032,158.37,158.3,20.0]
[1727656051185,6.3148,158.36,158.31,1.26312652]
[1727656051393,6.317,158.31,158.24,20.0]
[1727656051593,6.4857,158.3,158.1,31.6254]
[1727656051809,31.5677,158.39,158.09,7.85710774]
[1727656051810,15.5032,158.28,158.09,7.85710774]
[1727656052099,15.5032,158.28,158.07,15.0682]
[1727656052100,20.0,158.26,158.12,15.67968796]
[1727656052300,23.776884,158.21,158.11,15.8109]
[1727656052492,24.027864,158.19,158.11,15.8109]
[1727656052689,0.25098,158.23,158.11,15.8109]
[1727656052911,24.027864,158.21,158.18,0.310177]
[1727656053222,0.25098,158.19,158.18,0.310177]
[1727656053620,0.25098,158.26,158.18,0.310177]
[1727656053824,0.12549,158.26,158.18,8.94750601]
[1727656054020,6.4857,158.27,158.19,8.63732901]
[1727656054021,19.54736459,158.25,158.19,8.63732901]
[1727656054336,19.54736459,158.24,158.21,15.8017]
[1727656054511,7.51821715,158.23,158.21,15.8017]
[1727656054720,7.51346093,158.22,158.21,15.8017]
[1727656054924,7.51346093,158.22,158.18,0.310177]
[1727656055142,7.51346093,158.21,158.19,6.3212]
[1727656055329,7.51346093,158.2,158.19,6.3212]
[1727656055637,7.45214569,158.2,158.19,6.3212]
[1727656056335,44.027864,158.29,158.21,6.3204]
[1727656056648,12.90217222,158.3,158.18,0.310177]
[1727656056649,0.12549,158.25,158.18,0.310177]
[1727656056851,19.3620862,158.24,158.18,6.631777]
[1727656057007,19.3620862,158.23,158.18,6.631777]
[1727656057334,7.44695623,158.22,158.2,6.3207]
[1727656057539,44.027864,158.29,158.22,6.3199]
[1727656057832,20.12549,158.27,158.21,15.8016]
[1727656058039,0.12549,158.25,158.21,15.8016]
[1727656058216,7.44121833,158.24,158.21,15.8016]
[1727656058415,7.94121833,158.23,158.18,0.310177]
[1727656058615,7.56670833,158.22,158.18,0.310177]
[1727656058916,7.44121833,158.21,158.18,0.310177]
[1727656059708,20.25098,158.25,158.18,0.310177]
[1727656060438,0.25098,158.28,158.22,6.3201]
[1727656060732,0.12549,158.28,158.22,6.3201]
[1727656061238,20.0,158.29,158.22,6.3201]
[1727656061417,7.43532345,158.24,158.22,6.3201]
[1727656061618,0.5,158.31,158.22,6.3201]
[1727656061843,7.06229007,158.31,158.18,0.310177]
[1727656062020,50.0,158.3,158.18,0.310177]
[1727656062536,6.3189,158.26,158.18,0.310177]
[1727656062735,20.12549,158.25,158.18,0.310177]
[1727656063115,20.12549,158.25,158.18,6.631877]
[1727656063537,6.44439,158.26,158.19,6.3213]
[1727656063538,7.36554252,158.24,158.19,6.3213]
[1727656063710,7.36554252,158.23,158.19,6.3213]
[1727656064013,0.12549,158.25,158.19,6.3213]
[1727656064213,7.36209693,158.24,158.19,6.3213]
[1727656064555,20.12549,158.27,158.2,1.26421821]
[1727656064845,19.13443716,158.26,158.22,6.3201]
[1727656065141,6.56229007,158.31,158.23,6.3197]
[1727656065340,19.13492282,158.3,158.23,6.3197]
[1727656065539,19.63492282,158.29,158.25,6.319]
[1727656065713,7.3595857,158.28,158.25,6.319]
[1727656065914,6.2398,158.32,158.25,6.319]
[1727656066124,19.13501158,158.31,158.25,6.319]
[1727656066330,6.3176,158.29,158.21,6.3204]
[1727656066548,19.13501158,158.28,158.22,1.26400586]
[1727656066725,26.3168,158.31,158.24,6.3192]
[1727656066930,19.63462429,158.3,158.24,6.3192]
[1727656067130,19.13462429,158.29,158.24,6.3192]
[1727656067333,7.35965395,158.28,158.22,22.1205]
[1727656067530,20.0,158.31,158.22,15.8006]
[1727656067743,19.13478947,158.3,158.23,1.26373698]
[1727656067928,19.13478947,158.29,158.24,6.3194]
[1727656068127,6.36529,158.32,158.25,15.797]
[1727656068128,7.35953441,158.28,158.25,15.797]
[1727656068444,0.5,158.31,158.25,22.1157]
[1727656068739,13.6782009,158.3,158.25,15.797]
[1727656068940,7.8611009,158.29,158.25,15.797]
[1727656069149,7.3611009,158.28,158.25,15.797]
[1727656069348,19.13002947,158.32,158.25,22.1159]
[1727656069523,7.30614642,158.31,158.25,15.797]
[1727656069724,7.30614642,158.3,158.26,6.3184]
[1727656070026,6.3159,158.33,158.26,6.3184]
[1727656070233,7.30764574,158.32,158.27,1.26362483]
[1727656070443,7.30764574,158.31,158.25,15.797]
[1727656070623,0.5,158.31,158.25,22.1159]
[1727656070822,0.5,158.31,158.26,6.3185]
[1727656071024,6.3157,158.34,158.28,6.3177]
[1727656071226,7.30870313,158.33,158.3,6.317]
[1727656071565,7.30870313,158.32,158.3,6.317]
[1727656071727,0.5,158.35,158.28,15.7942]